{"text_format":"1","workbook":"xlsx","n_sheets":1,"sheets":["E1200580-v5"],"not_rendered":{"charts":0,"images":1,"macros":1,"external_links":0,"defined_names":11,"comments":0,"pivot_tables":0},"unopened":[],"bounds":{"document_bytes":16777216,"sheet_cells":100000,"rows_first":2000,"rows_last":500,"rows_between":2000,"halvings":0,"cell_chars":16384,"cell_head_chars":4096},"cells_cut":0,"cells_raw":0,"read":"whole","date_system":"1900"}

{"sheet":"E1200580-v5","index":0,"n_rows":87,"n_cols":27,"rows_kept":87,"cut":false,"hidden":false,"merged":[[86,22,86,25],[37,3,37,9],[38,19,38,20],[39,0,39,29],[29,23,36,23],[29,25,36,25],[31,26,34,29],[36,10,36,13],[29,24,35,24],[10,2,10,4],[13,2,13,4],[11,2,11,4],[16,2,16,5],[29,22,36,22]]}
[]
[null,"CALIFORNIA INSTITUTE OF TECHNOLOGY"]
[]
[]
[]
[null,"FORMAL DRAWING TREE REFERENCE DOCUMENT"]
[]
[null,"TITLE: ","aLIGO TCS Hartmann Sensor"]
[null,null,"for Production"]
[]
[null,"DOCUMENT CONTROL NO.:","E1200580",null,null,"-v5"]
[null,"RELATED DOC. CHANGE NO.: ","E1400016",null,null,"-v1"]
[]
[null,"CONTAINING ASSEMBLY:","D1000657",null,null,"-v7"]
[]
[null,"AUTHOR: ","M. JACOBSON"]
[null,"DATE: ","2014-01-14"]
[]
[null,"PURPOSE: ","This document is the formal reference for necessary revisions of each child of the stated assemblies, and the total necessary quantities for all items."]
[]
[]
[]
[]
[]
[]
[]
[]
[]
[]
["Subsystem:","RH",null,null,null,null,null,null,null,null,null,null,null,null,null,null,null,null,null,null,null,null,"PDR","delta-PDR","FDR","XXX"]
["Reporter:","Mindy Jacobson"]
["Date:","2010-08-09",null,null,null,null,null,null,null,null,null,null,null,null,null,null,null,null,null,null,null,null,null,null,null,null,"RESERVED for\nPROCUREMENT TRACKING"]
[]
[null,"Total No. Dwgs = ",{"$f":"COUNT(U41:U53,U54:U63)","v":9}]
[null,"Aggregate %-complete = ",{"$f":"SUM(U41:U53,U54:U63)/C34","v":52.222222222222221}]
[]
[null,null,null,null,null,null,null,null,null,null,"QUANTITY"]
["DCN","NOTES","Level","INDENTURE CHART",null,null,null,null,null,null,"REQ'd","SPARE","TOT.","UNITS","DWG TREE REF. NO.","MATERIAL","DCC No.","NAME","TYPE","MODEL STATUS","DWG STATUS","SOURCE","REV.","REV.","REV.","REV."]
["No.",null,null,null,null,null,null,null,null,null,null,null,null,null,null,null,null,null,null,"% COMPLETE"]
["                     EXTERNAL TO VACUUM"]
["E1400016",null,0,null,null,null,null,null,null,null,1,null,{"$f":"L41+K41","v":1},"EA","E1200580",null,"D1000657","aLIGO TCS HARTMANN SENSOR","TopAssy",90,0,"MTS","N/A","N/A","v7"]
[null,"DALSA",1,{"$f":"$C42","v":1},1,1,1,1,1,1,1,null,{"$f":"L42+K42","v":1},"EA",null,"multi","D1000709","CAMERA, DALSA PANTERA 1M60, DS-22-01M60-12E","PRT",100,100,"OTS","N/A","V1","N/A"]
["E1400016","U-Adelaide",1,1,1,1,1,1,1,1,1,null,1,"EA",null,"Invar 36","D1000708","aLIGO HARTMANN SENSOR CAMERA SPACER PLATE","PRT",90,90,"MTS","N/A","N/A","v7"]
[null,null,1,1,1,1,1,1,null,null,4,1,5,"EA",null,"18-8",null,"FHSCS M4 x 6 MM LONG","HW",null,null,"OTS",null,null,"N/A"]
["E1400016","U-Adelaide",1,1,1,1,1,1,1,1,1,null,1,"EA",null,"Invar 36","D1000658","aLIGO HARTMANN SENSOR PLATE CLAMP","PRT",90,90,"MTS","N/A","N/A","v5"]
[null,null,1,1,1,1,1,1,1,1,4,1,5,"EA",null,"18-8",null,"SS SHCS M3 X 12 MM LONG","HW",null,null,"OTS",null,null,"N/A"]
[null,null,1,1,1,1,1,1,1,1,5,1,6,"EA",null,"18-8",null,"FLAT WASHER, M3","HW",null,null,"OTS",null,null,"N/A"]
[null,"MCMASTER CARR",1,1,1,1,1,1,1,1,1,null,{"$f":"L48+K48","v":1},"EA",null,"Al","73125K68","FLAG STYLE RING TERMINAL","HW",null,null,"OTS",null,null,"N/A"]
[null,"THORLABS",1,1,1,1,1,1,1,1,1,null,1,"EA",null,"Al","SM1L05","THORLABS 1 IN LENS TUBE, .5 IN LONG","PRT",90,90,"OTS","N/A","N/A","N/A"]
[null,"THORLABS",1,1,1,1,1,1,1,1,1,null,1,"EA",null,null,"FB840-10","THORLABS 840 nm BP FILTER, 10 nm FWHM","PRT",100,0,"OTS","N/A","N/A","N/A"]
["E1200579","U-Adelaide",1,1,1,1,1,1,1,1,1,null,1,"EA",null,"Invar, HV 213","D1000669","HARTMANN PLATE","HW",100,0,"MTS","N/A","N/A","v5"]
[null,null,2,2,2,2,2,2,2,2,2,null,2,"EA",null,"SSTL",null,"DOWEL PIN, METRIC, 2.5 MMOD X 12 MM LONG","HW",null,null,"OTS",null,null,"N/A"]
["E1100147",null,1,1,1,1,1,1,1,1,2,null,2,"EA",null,"Cu, Alloy 110","D1000729","HEAT SPREADER","PRT",75,0,"MTS","N/A","N/A","v3"]
["E1100147",null,1,{"$f":"$C54","v":1},1,1,1,1,1,1,2,2,4,"EA",null,"Al 6063-T5","D1000736","HEAT SINK","PRT",100,100,"MTS","N/A","N/A","v2"]
[null,"W/ MODIFIED HEAD",1,1,1,1,1,1,1,1,4,1,{"$f":"L55+K55","v":5},"EA",null,"18-8",null,"SS SHCS M4 X 25 MM LONG","HW",null,null,"OTS",null,null,"N/A"]
[null,"Omega",1,1,1,1,1,1,1,1,1,0,1,"EA",null,"Pt, multi","D1200568","HARTMANN PLATE RTD CABLE ASSEMBLY","ASSY",null,null,"MTS",null,null,"v1"]
[null,null,1,1,1,1,1,1,1,1,4,1,5,"EA",null,"18-8",null,"SS SHCS 1/4-20 UNC-2A X .75 LONG","HW",null,null,"OTS",null,null,"N/A"]
[null,null,1,1,1,1,1,1,1,1,4,1,5,"EA",null,"18-8",null,"FLAT WASHER, .296 ID, .438 OD","HW",null,null,"OTS",null,null,"N/A"]
["E1200579",null,1,1,1,1,1,1,1,1,1,null,{"$f":"L59+K59","v":1},"EA",null,"Al 6061","D1000715","HARTMANN SENSOR CAMERA MOUNT","PRT",null,null,"MTS",null,null,"v4"]
[null,null,1,1,1,1,1,1,1,1,2,2,4,"EA",null,"18-8",null,"SHCS, #8-32 X 1.25 IN LONG","HW",null,null,"OTS",null,null,"N/A"]
[null,null,1,1,1,1,1,1,1,1,1,1,2,"EA",null,"18-8",null,"SS SHCS 1/4-20 UNC-2A X .5 LONG","HW",null,null,"OTS",null,null,"N/A"]
[null,null,1,1,1,1,1,1,1,1,1,1,{"$f":"L62+K62","v":2},"EA",null,"18-8",null,"SS HEX HEAD 1/4-20 UNC-2A X .5 LONG","HW",null,null,"OTS",null,null,"N/A"]
[null,"EDT",1,1,1,1,1,1,1,1,1,null,{"$f":"L63+K63","v":1},"EA",null,"multi",null,"RCX C-LINK","PRT",null,null,"OTS",null,null,"N/A"]
[]
[]
[]
[]
[]
[]
[]
[]
[]
[]
[]
[]
[]
[]
[]
[]
[]
[]
[]
[]
[]
[]
[]
[null,null,null,null,null,null,null,null,null,null,null,null,null,null,null,null,null,null,null,null,null,null,"N/A = NOT APPLICABLE"]